bitfinex-derivatives/quotes_SOLF0:USTF0_20250808
["timestamp","ask_amount","ask_price","bid_price","bid_amount"]
[1754620958395,6.5438743,174.35,174.34,3.23]
[1754620960696,3.28,174.36,174.34,8.9647]
[1754620960892,3.28,174.36,174.35,3.23]
[1754620961586,3.2638743,174.37,174.36,3.23]
[1754620961787,6.5438743,174.37,174.36,3.23]
[1754620962597,12.2776743,174.37,174.36,3.23]
[1754620966498,8.9976743,174.37,174.36,3.23]
[1754620966798,6.5438743,174.37,174.36,3.23]
[1754620966998,3.2638743,174.37,174.36,3.23]
[1754620968698,6.5438743,174.37,174.36,3.23]
[1754620969202,12.2776743,174.37,174.36,3.23]
[1754620970202,8.9976743,174.37,174.36,3.23]
[1754620971202,3.2638743,174.37,174.36,3.23]
[1754620972204,12.2776743,174.37,174.36,3.23]
[1754620973812,8.9976743,174.37,174.36,3.23]
[1754620974106,0.03824035,174.39,174.34,3.23]
[1754620974498,0.03824035,174.39,174.36,5.7339]
[1754620974703,0.03824035,174.39,174.37,3.23]
[1754620975513,0.03824035,174.39,174.38,3.23]
[1754620976215,0.03824035,174.39,174.38,8.9634]
[1754620977313,3.31824035,174.39,174.38,3.23]
[1754620978217,9.05134035,174.39,174.38,3.23]
[1754620978914,3.31824035,174.39,174.38,3.23]
[1754620980021,0.03824035,174.39,174.38,3.23]
[1754620980821,0.03824035,174.39,174.38,8.9634]
[1754620985913,3.27824035,174.39,174.38,8.9634]
[1754620986115,0.03824035,174.39,174.38,8.9634]
[1754620992825,4.035e-05,174.39,174.38,8.9634]
[1754620993320,4.035e-05,174.39,174.38,113.4034]
[1754620996626,3.24,174.5,174.38,104.44]
[1754620996819,3.24,174.47,174.41,3.34]
[1754620997019,3.24,174.47,174.4,3.2638743]
[1754620997020,3.24,174.47,174.42,104.44]
[1754620997227,3.24,174.47,174.43,3.34]
[1754620997530,8.9934743,174.5,174.47,5.7304]
[1754620997729,3.2638743,174.5,174.45,3.34]
[1754620997920,5.73,174.49,174.45,3.34]
[1754620998120,3.24,174.48,174.46,5.7306]
[1754620998525,3.24,174.48,174.46,9.0706]
[1754620998727,3.24,174.48,174.47,5.7305]
[1754620999729,3.24,174.48,174.47,9.0705]
[1754621000029,3.24,174.48,174.47,5.7305]
[1754621002226,3.24,174.48,174.46,9.0707]
[1754621002431,3.24,174.48,174.46,3.34]
[1754621003132,8.9934743,174.5,174.47,5.7302]
[1754621003326,3.24,174.49,174.48,3.34]
[1754621003833,3.24,174.49,174.47,5.7302]
[1754621004025,3.24,174.49,174.47,9.0702]
[1754621004227,3.24,174.49,174.45,0.03803513]
[1754621004228,3.24,174.5,174.45,3.37803513]
[1754621004528,3.24,174.48,174.45,3.37803513]
[1754621004729,8.9703,174.48,174.45,9.10893513]
[1754621004931,6.5038743,174.47,174.45,0.03803513]
[1754621005123,3.24,174.46,174.45,0.03803513]
[1754621006835,8.9708,174.46,174.45,0.03803513]
[1754621008136,5.732,174.43,174.4,5.7325]
[1754621008331,3.24,174.4,174.39,3.34]
[1754621008537,3.24,174.4,174.37,3.34]
[1754621009431,3.24,174.4,174.38,9.0733]
[1754621009632,3.2775185,174.4,174.38,9.0733]
[1754621009935,3.2775185,174.4,174.39,5.7331]
[1754621010237,3.2775185,174.4,174.39,9.0731]
[1754621010536,3.2775185,174.4,174.38,9.0733]
[1754621011035,3.24,174.39,174.38,9.0733]
[1754621011539,3.2775185,174.4,174.39,9.0731]
[1754621018941,3.2775185,174.4,174.39,5.7331]
[1754621019135,3.2775185,174.4,174.38,5.7334]
[1754621019336,3.2638743,174.39,174.37,3.05]
[1754621019535,3.03,174.38,174.37,3.05]
[1754621019843,3.03,174.37,174.34,3.05]
[1754621020244,3.03,174.37,174.36,5.7341]
[1754621020442,3.03,174.37,174.36,8.7841]
[1754621020946,3.03,174.39,174.34,3.05]
[1754621021244,3.03,174.38,174.34,3.05]
[1754621021446,3.03,174.38,174.37,8.7838]
[1754621024151,6.3313928,174.4,174.39,8.7831]
[1754621024341,3.0675185,174.4,174.39,8.7831]
[1754621025044,0.0375185,174.4,174.39,8.7831]
[1754621025249,3.0675185,174.4,174.39,8.7831]
[1754621025746,0.0375185,174.4,174.39,8.7831]
[1754621028149,1.85e-05,174.4,174.39,8.7831]
[1754621028345,3.2638743,174.47,174.4,3.05]
[1754621028545,3.03,174.48,174.42,3.05]
[1754621028744,3.03,174.48,174.43,3.2638743]
[1754621028946,3.03,174.5,174.49,5.7297]
[1754621029143,3.2638743,174.51,174.43,3.2638743]
[1754621029354,3.03,174.52,174.46,3.05]
[1754621029648,3.03,174.52,174.5,3.05]
[1754621030055,5.7288,174.52,174.5,3.05]
[1754621030252,3.03,174.51,174.5,3.05]
[1754621032254,3.03,174.51,174.5,8.7795]
[1754621032559,3.03,174.52,174.5,3.05]
[1754621033151,3.03,174.53,174.48,3.05]
[1754621033351,3.03,174.52,174.48,3.05]
[1754621033649,3.03,174.51,174.47,0.03655288]
[1754621033856,3.03,174.51,174.48,3.05]
[1754621034149,3.2638743,174.5,174.47,0.03655288]
[1754621034347,3.03,174.49,174.47,0.03655288]
[1754621034750,5.73,174.49,174.47,0.03655288]
[1754621034948,3.03,174.48,174.47,0.03655288]
[1754621035354,8.7601,174.48,174.47,0.03655288]
[1754621035655,3.03,174.48,174.47,0.03655288]
[1754621035845,3.03,174.48,174.47,3.08655288]
[1754621039863,3.03,174.48,174.47,0.03655288]
[1754621040753,8.7601,174.48,174.47,0.03655288]
[1754621041150,3.03,174.48,174.47,0.03655288]
[1754621041357,3.03,174.48,174.47,3.08655288]
[1754621041956,3.03,174.48,174.47,0.03655288]
[1754621042960,3.03,174.48,174.47,3.13655288]
[1754621043164,3.05,174.5,174.47,3.13655288]
[1754621043362,3.05,174.49,174.47,3.13655288]
[1754621043566,3.05,174.49,174.48,3.1]
[1754621044165,5.7295,174.5,174.47,5.76675288]
[1754621044360,3.05,174.48,174.47,8.86675288]
[1754621044665,3.05,174.48,174.47,0.03655288]
[1754621046565,8.7801,174.48,174.47,0.03655288]
[1754621047068,5.73,174.49,174.47,0.03655288]
[1754621047266,3.05,174.48,174.47,3.13655288]
[1754621047567,3.05,174.48,174.47,0.03655288]
[1754621050770,3.05,174.48,174.47,3.13655288]
[1754621051870,3.05,174.48,174.47,0.03655288]
[1754621052467,8.7802,174.48,174.47,0.03655288]
[1754621054269,8.7802,174.48,174.47,3.13655288]
[1754621054570,3.05,174.48,174.47,0.03655288]
[1754621055873,8.7802,174.48,174.47,0.03655288]
[1754621060073,8.7802,174.48,174.47,3.13655288]
[1754621061879,8.9938743,174.49,174.47,3.13655288]
[1754621062078,12.0438743,174.49,174.47,3.13655288]
[1754621062379,5.7302,174.48,174.47,0.03655288]
[1754621062575,8.7802,174.48,174.47,0.03655288]
[1754621063077,8.7802,174.48,174.47,3.13655288]
[1754621063782,5.7302,174.48,174.47,3.13655288]
[1754621064373,8.7802,174.48,174.47,3.13655288]
[1754621068079,8.7802,174.48,174.47,0.03655288]
[1754621068578,8.7802,174.48,174.47,3.13655288]
[1754621074787,10.86223966,174.48,174.47,3.13655288]
[1754621078190,7.81223966,174.48,174.47,3.13655288]
[1754621079488,11.09223966,174.48,174.47,3.13655288]
[1754621082791,11.09223966,174.48,174.47,0.03655288]
[1754621083595,11.09223966,174.48,174.47,3.23655288]
[1754621089400,9.0102,174.48,174.47,3.23655288]
[1754621089604,7.81223966,174.48,174.47,3.23655288]
[1754621091806,11.09223966,174.48,174.47,3.23655288]
[1754621092507,7.81223966,174.48,174.47,3.23655288]
[1754621093206,11.09223966,174.48,174.47,3.23655288]
[1754621095705,11.09223966,174.48,174.47,0.03655288]
[1754621097104,3.28,174.43,174.41,144.6928217]
[1754621097408,2.08203966,174.43,174.41,144.6928217]
[1754621097611,2.08203966,174.43,174.42,3.2]
[1754621098111,7.81373966,174.44,174.42,3.2]
[1754621098811,2.08203966,174.46,174.42,5.28203966]
[1754621099006,2.08203966,174.46,174.43,3.2]
[1754621099208,5.36203966,174.46,174.43,3.2]
[1754621099610,5.40015708,174.46,174.43,3.2]
[1754621099818,2.08203966,174.45,174.43,3.2]
[1754621100313,5.36203966,174.44,174.43,3.2]
[1754621100709,2.08203966,174.44,174.43,3.2]
[1754621100909,2.08203966,174.45,174.43,3.2]
[1754621101207,0.03811742,174.46,174.43,3.2]
[1754621101414,0.03811742,174.46,174.45,8.9311]
[1754621105621,0.03811742,174.46,174.45,3.2]
[1754621106213,11.19095708,174.46,174.45,3.2]
[1754621106915,9.0718,174.44,174.42,3.33]
[1754621107109,5.42203966,174.43,174.42,3.33]
[1754621107303,2.08203966,174.43,174.42,9.0621]
[1754621107513,5.42203966,174.44,174.43,3.33]
[1754621108615,11.15353966,174.44,174.43,3.33]
[1754621108821,3.34,174.44,174.43,3.33]
[1754621109013,5.42203966,174.44,174.43,3.33]
[1754621110712,2.08203966,174.44,174.43,3.33]
[1754621110918,2.08203966,174.45,174.43,3.33]
[1754621111114,2.08203966,174.45,174.42,5.7319]
[1754621111324,11.15323966,174.45,174.44,3.33]
[1754621111524,5.42203966,174.45,174.44,3.33]
[1754621111717,2.08203966,174.45,174.44,3.33]
[1754621112521,0.03811742,174.46,174.45,3.33]
[1754621112818,0.03811742,174.46,174.45,5.41203966]
[1754621113322,0.03811742,174.46,174.45,11.14313966]
[1754621117427,0.03811742,174.46,174.45,9.0611]
[1754621117626,0.03811742,174.46,174.45,11.14313966]
[1754621118926,11.15103966,174.52,174.49,5.7296]
[1754621119127,3.34,174.51,174.5,3.33]
[1754621119530,9.0692,174.51,174.5,3.33]
[1754621120428,5.7296,174.5,174.48,11.14203966]
[1754621120630,3.34,174.49,174.48,7.81203966]
[1754621120828,3.34,174.5,174.48,7.81203966]
[1754621121025,3.34,174.5,174.49,5.7298]
[1754621121231,3.34,174.5,174.49,9.0598]
[1754621122231,3.34,174.52,174.5,3.33]
[1754621122530,5.42203966,174.53,174.5,3.33]
[1754621122731,2.08203966,174.53,174.5,3.33]
[1754621122927,3.34,174.52,174.51,3.33]
[1754621127837,9.0688,174.52,174.51,3.33]
[1754621129036,3.34,174.52,174.51,3.33]
[1754621132037,2.08203966,174.55,174.48,0.03807072]
[1754621132340,3.21,174.6,174.55,3.26]
[1754621132643,5.7272,174.57,174.56,3.26]
[1754621132837,2.08203966,174.58,174.54,3.26]
[1754621133040,3.21,174.55,174.54,3.26]
[1754621133440,3.21,174.55,174.54,3.29643678]
[1754621133841,3.21,174.55,174.54,9.02463678]
[1754621134035,8.9372,174.57,174.54,11.10667644]
[1754621134235,3.21,174.56,174.55,3.26]
[1754621134436,5.7278,174.55,174.54,0.03643678]
[1754621134646,8.9378,174.55,174.54,0.03643678]
[1754621135343,8.9378,174.55,174.54,3.29643678]
[1754621136037,8.9378,174.55,174.54,0.03643678]
[1754621136542,5.7278,174.55,174.54,3.29643678]
[1754621136846,3.21,174.56,174.54,5.37847644]
[1754621137144,3.21,174.58,174.57,3.26]
[1754621137643,3.21,174.57,174.56,3.26]
[1754621137838,3.21,174.57,174.56,3.29647696]
[1754621138044,8.9372,174.57,174.56,3.29647696]
[1754621141048,3.21,174.57,174.56,3.29647696]
[1754621142541,7.80903966,174.58,174.57,3.26]
[1754621142542,3.21,174.58,174.57,3.26]
[1754621143244,0.9971061,174.62,174.57,2.08203966]
[1754621143245,3.07914576,174.62,174.57,2.08203966]
[1754621143544,3.21,174.62,174.61,3.26]
[1754621143739,3.21,174.62,174.59,2.08203966]
[1754621143940,5.29203966,174.61,174.59,3.26]
[1754621144142,3.21,174.59,174.56,5.34203966]
[1754621144337,3.21,174.58,174.57,3.26]
[1754621144944,8.9369,174.58,174.57,3.26]
[1754621145546,5.7272,174.57,174.56,3.29623127]
[1754621145846,12.18559949,174.57,174.56,0.03623127]
[1754621148855,12.18559949,174.57,174.56,3.29623127]
[1754621149062,3.21,174.59,174.56,3.29623127]
[1754621149264,3.21,174.63,174.58,3.26]
[1754621149860,8.9358,174.62,174.59,3.26]
[1754621150259,3.21,174.61,174.59,3.26]
[1754621150761,3.21,174.61,174.59,3.29654213]
[1754621150958,8.9354,174.63,174.6,3.26]
[1754621151358,3.21,174.62,174.6,3.26]
[1754621152965,8.9356,174.62,174.59,5.76294213]
[1754621153160,8.9356,174.62,174.61,3.26]
[1754621153465,3.21,174.62,174.61,3.26]
[1754621153764,3.21,174.63,174.62,3.26]
[1754621153958,8.9355,174.63,174.59,5.76294213]
[1754621154157,3.21,174.62,174.61,3.26]
[1754621155766,8.9355,174.62,174.61,3.26]
[1754621156165,3.21,174.62,174.61,3.26]
[1754621156562,3.21,174.65,174.59,3.29654213]
[1754621156767,3.21,174.66,174.61,3.26]
[1754621157064,3.21,174.66,174.63,5.725]
[1754621157259,3.21,174.65,174.63,3.26]
[1754621158463,3.21,174.65,174.63,5.7251]
[1754621158766,3.21,174.65,174.64,3.26]
[1754621158957,5.724,174.67,174.64,3.26]
[1754621159162,388.32839949,174.7,174.65,3.26]
[1754621159464,3.24839949,174.7,174.64,3.26]
[1754621159767,3.21,174.69,174.64,3.26]
[1754621159962,3.21,174.69,174.66,3.29997359]
[1754621160266,3.21,174.71,174.67,3.26]
[1754621160569,3.21,174.7,174.68,3.26]
[1754621161067,3.21,174.72,174.67,3.26]
[1754621161270,3.21,174.68,174.67,3.26]
[1754621163569,3.32,174.69,174.67,3.26]
[1754621163970,9.043,174.7,174.67,3.26]
[1754621164173,3.32,174.69,174.67,3.26]
[1754621164471,3.32,174.69,174.67,8.9839]
[1754621164770,3.32,174.7,174.68,3.33]
[1754621164973,3.32,174.7,174.69,3.33]
[1754621165667,3.32,174.7,174.68,3.33]
[1754621167469,3.32,174.7,174.68,9.0534]
[1754621167674,9.0424,174.72,174.69,3.33]
[1754621167871,3.32,174.74,174.69,3.33]
[1754621168075,3.32,174.73,174.7,5.7228]
[1754621168275,3.32,174.73,174.71,3.33]
[1754621168472,9.0418,174.74,174.71,3.33]
[1754621168673,3.32,174.73,174.71,3.33]
[1754621169374,9.042,174.73,174.7,5.7607913]
[1754621169674,3.32,174.72,174.7,0.0379913]
[1754621170077,3.32,174.72,174.7,3.3679913]
[1754621170277,9.0426,174.71,174.7,3.3679913]
[1754621170575,9.0426,174.71,174.7,0.0379913]
[1754621170771,12.29099949,174.71,174.7,0.0379913]
[1754621170977,12.29099949,174.71,174.64,3.33]
[1754621171274,3.24839949,174.68,174.64,3.33]
[1754621171475,3.32,174.67,174.64,3.33]
[1754621171668,9.0446,174.65,174.64,3.33]
[1754621171873,3.32,174.65,174.62,3.33]
[1754621172276,3.24839949,174.64,174.55,145.53753333]
[1754621172476,3.32,174.61,174.58,3.33]
[1754621172677,3.24839949,174.62,174.59,3.33]
[1754621172678,3.32,174.62,174.59,3.33]
[1754621172881,9.0455,174.63,174.59,3.33]
[1754621173076,0.03645878,174.61,174.59,9.0563]
[1754621173276,0.03645878,174.61,174.6,3.33]
[1754621173781,0.03645878,174.61,174.6,9.0562]
[1754621178686,3.24839949,174.68,174.63,5.725]
[1754621178889,3.32,174.66,174.64,3.33]
[1754621179088,6.56839949,174.68,174.64,3.33]
[1754621179287,3.32,174.67,174.64,3.33]
[1754621179889,3.32,174.67,174.64,5.7249]
[1754621180190,9.0437,174.68,174.67,3.33]
[1754621180386,3.32,174.68,174.67,3.33]
[1754621181795,5.7236,174.68,174.65,3.33]
[1754621181995,3.32,174.67,174.66,3.33]
[1754621182492,9.044,174.67,174.64,3.3695924]
[1754621182794,3.32,174.66,174.64,3.3695924]
[1754621183091,3.32,174.65,174.64,9.0944924]
[1754621183291,5.7241,174.67,174.64,0.0395924]
[1754621183493,3.32,174.65,174.64,3.3695924]
[1754621183692,3.32,174.67,174.64,3.3695924]
[1754621183892,3.32,174.66,174.65,3.33]
[1754621184595,5.7237,174.68,174.65,3.33]
[1754621184797,3.32,174.67,174.66,3.33]
[1754621185295,5.7237,174.68,174.66,3.33]
[1754621185596,3.32,174.68,174.65,3.33]
[1754621185894,3.32,174.68,174.66,3.33]
[1754621186197,5.7239,174.67,174.66,3.33]
[1754621186392,9.0439,174.67,174.66,3.33]
[1754621188100,3.32,174.67,174.66,3.33]
[1754621189000,3.24839949,174.69,174.64,0.0395924]
[1754621189202,3.24839949,174.67,174.64,0.0395924]
[1754621189395,3.32,174.66,174.64,0.0395924]
[1754621189798,3.32,174.66,174.65,3.33]
[1754621190696,104.28,174.7,174.64,0.0395924]
[1754621190903,3.24839949,174.65,174.64,0.0395924]
[1754621191103,6.56839949,174.65,174.64,0.0395924]
[1754621191293,5.7244,174.66,174.64,3.3695924]
[1754621191498,3.32,174.65,174.64,0.0395924]
[1754621191801,9.0446,174.65,174.64,0.0395924]
[1754621192105,9.0446,174.65,174.64,3.3495924]
[1754621192503,3.32,174.65,174.64,3.3495924]
[1754621193305,9.0446,174.65,174.64,3.3495924]
[1754621193606,5.7246,174.65,174.64,0.0395924]
[1754621193907,12.14299949,174.65,174.64,0.0395924]
[1754621195208,12.14299949,174.65,174.64,3.3495924]
[1754621196609,12.14299949,174.65,174.64,0.0395924]
[1754621197512,8.8946,174.65,174.64,3.3495924]
[1754621197713,12.14299949,174.65,174.64,3.3495924]
[1754621198207,6.41839949,174.65,174.64,3.3495924]
[1754621198411,3.24839949,174.67,174.64,3.3495924]
[1754621198611,3.17,174.66,174.64,3.3495924]
[1754621198811,530.70798221,174.8,174.66,3.31]
[1754621199111,3.24839949,174.72,174.66,3.31]
[1754621199311,6.41839949,174.73,174.71,3.31]
[1754621199903,12.14059949,174.73,174.71,3.31]
[1754621200108,12.14059949,174.73,174.72,3.31]
[1754621202312,3.17,174.77,174.72,3.31]
[1754621202510,3.17,174.79,174.72,3.31]
[1754621202715,3.24839949,174.78,174.72,3.31]
[1754621202910,3.17,174.76,174.72,3.31]
[1754621203110,3.17,174.75,174.72,3.31]
[1754621203310,3.17,174.75,174.74,3.31]
[1754621204311,3.24839949,174.79,174.74,3.31]
[1754621204517,6.41839949,174.82,174.75,3.31]
[1754621204822,8.89,174.79,174.75,3.31]
[1754621205117,8.89,174.79,174.78,3.31]
[1754621207315,3.17,174.79,174.78,3.31]
[1754621207512,6.41839949,174.82,174.78,3.31]
[1754621207917,8.8896,174.81,174.78,3.31]
[1754621208222,3.17,174.81,174.78,3.31]
[1754621208420,5.7197,174.8,174.78,3.31]
[1754621208621,8.8897,174.8,174.79,3.31]
[1754621209722,5.72,174.79,174.78,0.04277599]
[1754621210022,8.89,174.79,174.78,0.04277599]
[1754621210221,3.17,174.79,174.78,0.04277599]
[1754621210517,8.8898,174.8,174.79,3.31]
[1754621210823,3.17,174.79,174.78,3.35277599]
[1754621211218,0.99585062,174.86,174.78,3.35277599]
[1754621211522,6.41839949,174.84,174.78,3.35277599]
[1754621211727,3.17,174.85,174.78,6.60117548]
[1754621211913,8.8888,174.83,174.79,3.31]
[1754621212318,8.8888,174.83,174.79,9.0299]
[1754621212522,8.8888,174.83,174.8,3.31]
[1754621213528,0.99565118,174.9,174.81,3.31]
[1754621213727,3.17,174.89,174.81,3.31]
[1754621213924,3.17,174.87,174.81,3.31]
[1754621214229,8.8882,174.85,174.81,3.31]
[1754621214423,8.8882,174.85,174.84,3.31]
[1754621215431,3.17,174.87,174.84,3.31]
[1754621216031,8.8875,174.87,174.84,3.31]
[1754621216234,3.24839949,174.9,174.84,3.31]
[1754621216530,3.17,174.88,174.84,3.31]
[1754621216931,3.17,174.87,174.84,3.3506277]
[1754621217131,5.7175,174.87,174.85,3.31]
[1754621217331,8.8875,174.87,174.86,3.31]
[1754621218227,5.7171,174.88,174.86,3.31]
[1754621218431,3.17,174.9,174.86,3.31]
[1754621218931,8.887,174.89,174.86,3.31]
[1754621219633,8.8871,174.88,174.87,3.31]
[1754621220536,3.17,174.88,174.84,3.3506277]
[1754621220726,3.17,174.88,174.85,3.31]
[1754621221229,3.17,174.88,174.84,0.0406277]
[1754621221230,3.17,174.85,174.84,3.3506277]
[1754621222928,8.888,174.85,174.84,3.3506277]
[1754621223130,12.16639949,174.85,174.84,0.0406277]
[1754621223734,8.9194,174.81,174.8,3.34]
[1754621224631,6.44839949,174.83,174.8,3.34]
[1754621224836,6.44839949,174.83,174.78,3.34]
[1754621225036,0.03863633,174.82,174.79,0.03981013]
[1754621225240,0.03863633,174.82,174.8,3.34]
[1754621225241,8.9196,174.81,174.8,3.34]
[1754621225628,0.03863633,174.82,174.8,3.34]
[1754621225832,0.03863633,174.82,174.81,12.30779949]
[1754621226131,0.03863633,174.82,174.81,9.0594]
[1754621226331,0.03863633,174.82,174.81,3.34]
[1754621226932,0.03863633,174.82,174.81,9.0594]
[1754621227132,3.2,174.88,174.82,3.24839949]
[1754621227338,5.7173,174.88,174.85,3.34]
[1754621227535,3.24839949,174.91,174.86,5.7177]
[1754621227739,3.2,174.9,174.87,3.34]
[1754621227940,3.2,174.89,174.87,3.34]
[1754621228337,3.2,174.89,174.87,3.37926517]
[1754621228539,6.44839949,174.93,174.88,3.34]
[1754621228739,3.2,174.91,174.88,3.34]
[1754621229042,8.9163,174.91,174.88,3.34]
[1754621229442,3.2,174.91,174.88,3.34]
[1754621229739,3.2,174.9,174.89,3.34]
[1754621230040,8.9164,174.9,174.89,3.34]
[1754621230241,3.2,174.9,174.89,3.34]
[1754621231448,8.9164,174.91,174.9,3.34]
[1754621232548,3.2,174.91,174.9,3.34]
[1754621233643,6.44839949,174.96,174.89,3.24839949]
[1754621233947,3.2,174.98,174.92,3.34]
[1754621234339,3.2,174.98,174.94,3.34]
[1754621235046,8.914,174.98,174.95,3.34]
[1754621235246,3.2,175.01,174.95,3.34]
[1754621235443,3.2,174.96,174.94,0.04048584]
[1754621235644,3.2,174.94,174.9,3.34]
[1754621235844,3.2,174.9,174.86,3.34]
[1754621236043,3.2,174.87,174.86,3.34]
[1754621236244,3.2,174.87,174.79,3.34]
[1754621236444,3.24839949,174.85,174.79,3.34]
[1754621236640,8.96649949,174.85,174.82,3.34]
[1754621236845,0.03961143,174.84,174.82,3.34]
[1754621237352,0.03961143,174.84,174.82,9.0588]
[1754621237550,0.03961143,174.84,174.83,3.34]
[1754621237950,0.03961143,174.84,174.83,9.0587]
[1754621238145,3.2,174.91,174.84,3.34]
[1754621238354,6.44839949,174.93,174.86,3.34]
[1754621238746,3.2,174.92,174.86,3.34]
[1754621239155,3.2,174.95,174.85,3.34]
[1754621239355,3.2,174.95,174.84,4.79505107]
[1754621239356,3.2,174.94,174.86,4.79505107]
[1754621239652,3.2,174.94,174.87,3.37900859]
[1754621239948,3.2,174.91,174.9,3.34]
[1754621240150,3.2,174.92,174.88,3.34]
[1754621240454,3.2,174.92,174.83,3.34]
[1754621240648,3.2,174.9,174.88,0.03984771]
[1754621241947,5.7168,174.89,174.88,0.03984771]
[1754621242147,8.9168,174.89,174.88,0.03984771]
[1754621243251,8.9168,174.89,174.88,3.37984771]
[1754621243747,4.79505107,174.93,174.88,3.37984771]
[1754621243949,4.79505107,174.93,174.88,0.03984771]
[1754621244150,3.2,174.91,174.9,3.34]
[1754621244351,8.9159,174.92,174.89,3.34]
[1754621244746,4.79505107,174.95,174.9,3.34]
[1754621244946,3.2,174.91,174.9,3.34]
[1754621245147,3.2,174.93,174.9,3.34]
[1754621245347,3.2,174.92,174.91,3.34]
[1754621245552,5.7159,174.92,174.89,3.34]
[1754621245749,3.2,174.9,174.89,3.34]
[1754621246253,3.2,174.92,174.89,3.34]
[1754621246447,4.79505107,174.95,174.88,0.03984771]
[1754621246653,3.2,174.91,174.9,3.34]
[1754621247756,3.2,174.96,174.9,3.34]
[1754621248152,3.2,174.96,174.89,3.34]
[1754621248854,8.9147,174.96,174.91,5.7159]
[1754621249153,3.2,174.94,174.93,3.34]
[1754621249653,3.2,174.98,174.91,3.34]
[1754621249849,4.79505107,174.98,174.91,3.34]
[1754621250154,3.2,174.94,174.93,3.34]
[1754621250554,3.2,174.93,174.92,3.37690479]
[1754621252057,5.7154,174.94,174.92,3.37690479]
[1754621252351,5.7151,174.95,174.93,3.08]
[1754621252556,9.0451,174.95,174.94,3.08]
[1754621252745,9.0454,174.94,174.93,3.08]
[1754621253153,3.33,174.97,174.92,3.11690479]
[1754621253346,9.0455,174.93,174.92,0.03690479]
[1754621254452,3.33,174.93,174.92,3.11690479]
[1754621254954,4.79505107,174.96,174.92,3.11690479]
[1754621254955,385.53496798,175.02,174.92,0.03690479]
[1754621255257,3.33,174.99,174.92,3.11690479]
[1754621255457,5.7136,174.99,174.92,3.11690479]
[1754621255653,3.33,175.0,174.92,7.91195586]
[1754621255859,3.33,175.0,174.93,3.08]
[1754621256051,5.7137,174.99,174.93,3.08]
[1754621256356,3.33,174.99,174.93,3.08]
[1754621256855,3.33,174.97,174.94,5.715]
[1754621257053,3.33,174.97,174.96,3.08]
[1754621257356,3.33,174.99,174.92,4.83195586]
[1754621257660,3.33,174.99,174.98,3.08]
[1754621258256,105.44,175.04,174.85,28.6158]
[1754621258257,418.437,175.12,174.95,4.79505107]
[1754621258462,3.33,175.04,174.98,3.08]
[1754621258661,3.33,174.99,174.97,0.04104295]
[1754621258855,3.33,174.99,174.93,4.79505107]
[1754621259154,3.33,174.98,174.95,5.7148]
[1754621259360,3.33,174.97,174.96,3.08]
[1754621259857,4.79505107,175.03,174.96,3.08]
[1754621260062,3.33,174.98,174.97,3.08]
[1754621260264,3.33,175.02,174.97,3.08]
[1754621260564,3.33,175.02,174.99,3.08]
[1754621260855,3.33,175.0,174.98,0.03607686]
[1754621261060,3.33,174.99,174.98,3.11607686]
[1754621261664,9.0435,174.99,174.98,3.11607686]